bitfinex/quotes_BTCUSD_20240827
["timestamp","ask_amount","ask_price","bid_price","bid_amount"]
[1724767477172,0.00401377,62297.0,62287.0,0.172643]
[1724767477394,0.15996545,62296.0,62287.0,0.172643]
[1724767477615,0.00401373,62295.0,62287.0,0.172643]
[1724767477860,0.15996545,62294.0,62288.0,0.0759643]
[1724767478077,0.00401371,62293.0,62288.0,0.0759643]
[1724767478345,0.15996545,62292.0,62289.0,0.3961]
[1724767478571,0.00401367,62291.0,62290.0,0.0782503]
[1724767478796,0.16397912,62291.0,62289.0,0.3961]
[1724767479026,0.16397912,62290.0,62289.0,0.3961]
[1724767479245,0.15996545,62290.0,62289.0,0.3961]
[1724767479474,0.15996545,62290.0,62289.0,0.46675387]
[1724767479719,0.34723089,62300.0,62289.0,0.46675387]
[1724767479720,0.0009064,62300.0,62290.0,0.1987]
[1724767479942,0.0009064,62297.0,62292.0,0.1987]
[1724767480166,0.0009064,62297.0,62294.0,0.1987]
[1724767480419,0.0009064,62297.0,62295.0,0.4762]
[1724767480647,0.0009064,62297.0,62296.0,0.5797]
[1724767480922,0.0009064,62297.0,62296.0,0.6797]
[1724767481156,0.0009064,62297.0,62296.0,0.76612554]
[1724767481374,0.0009064,62300.0,62298.0,0.3958]
[1724767481644,0.0009064,62300.0,62299.0,0.5758]
[1724767481872,0.0009064,62300.0,62299.0,0.6998]
[1724767482099,0.0009064,62300.0,62299.0,1.3206244]
[1724767482332,0.00401202,62324.0,62301.0,0.5758]
[1724767482553,0.47989634,62309.0,62306.0,0.5925]
[1724767482782,0.16397788,62308.0,62307.0,0.1]
[1724767483011,0.15996545,62308.0,62307.0,0.1]
[1724767483714,0.15996545,62308.0,62300.0,0.3908]
[1724767483715,0.15996545,62308.0,62306.0,0.011]
[1724767483945,0.1639784,62307.0,62306.0,0.011]
[1724767484409,0.1639784,62307.0,62303.0,0.1]
[1724767484618,0.1639784,62307.0,62304.0,0.06957]
[1724767484880,0.15996545,62307.0,62304.0,0.06957]
[1724767485105,0.15996545,62307.0,62306.0,0.009]
[1724767485581,0.15996545,62307.0,62303.0,0.1]
[1724767485805,0.16096545,62307.0,62303.0,0.1]
[1724767486131,0.15996545,62307.0,62303.0,0.1]
[1724767486552,0.15996545,62307.0,62306.0,0.008]
[1724767486763,0.56606545,62307.0,62306.0,0.008]
[1724767486991,0.56606545,62307.0,62306.0,0.006]
[1724767487831,0.56606545,62307.0,62294.0,0.1884]
[1724767487832,0.91238994,62307.0,62294.0,0.1884]
[1724767488046,0.15996545,62303.0,62290.0,0.1918]
[1724767488269,0.00401361,62302.0,62291.0,0.05909]
[1724767488482,0.15996545,62301.0,62291.0,0.05909]
[1724767488698,0.0040135,62300.0,62291.0,0.05909]
[1724767488919,0.15996545,62299.0,62291.0,0.05909]
[1724767489144,0.0040135,62298.0,62292.0,0.06701789]
[1724767489402,0.15996545,62297.0,62292.0,0.06701789]
[1724767489846,0.002,62307.0,62293.0,0.4073]
[1724767490057,0.1639786,62306.0,62294.0,0.17661179]
[1724767491162,0.00401332,62305.0,62294.0,0.17661179]
[1724767491375,0.15996545,62304.0,62294.0,0.17661179]
[1724767491583,0.00401331,62303.0,62294.0,0.17661179]
[1724767491796,0.15996545,62302.0,62295.0,0.07757118]
[1724767492035,0.0009064,62300.0,62295.0,0.07757118]
[1724767492270,0.16397874,62299.0,62295.0,0.07757118]
[1724767492533,0.00401329,62298.0,62295.0,0.07757118]
[1724767492744,0.0009064,62300.0,62296.0,0.05848712]
[1724767494304,0.0009064,62300.0,62296.0,0.06448712]
[1724767494738,0.0009064,62300.0,62297.0,0.1958]
[1724767494968,0.0009064,62300.0,62299.0,0.3812]
[1724767495191,0.0009064,62300.0,62299.0,0.4812]
[1724767496377,0.0009064,62300.0,62299.0,0.4942]
[1724767496596,0.16087185,62300.0,62299.0,0.113]
[1724767496844,0.16087185,62300.0,62299.0,0.04388]
[1724767497060,0.16087185,62300.0,62299.0,0.15788]
[1724767497962,0.16087185,62300.0,62299.0,0.127]
[1724767498211,0.54487185,62300.0,62299.0,0.027]
[1724767498494,0.54487185,62300.0,62299.0,0.014]
[1724767498706,0.54487185,62300.0,62299.0,0.002]
[1724767498928,0.16087185,62300.0,62292.0,0.1]
[1724767499151,0.0009064,62300.0,62299.0,0.006]
[1724767499404,0.0009064,62300.0,62299.0,0.007]
[1724767499642,0.0009064,62300.0,62292.0,0.12813849]
[1724767499854,0.0009064,62300.0,62299.0,0.002]
[1724767500373,0.16087185,62300.0,62299.0,0.002]
[1724767500642,0.0009064,62300.0,62299.0,0.3795]
[1724767500883,0.0009064,62300.0,62299.0,0.60985]
[1724767501107,0.0009064,62300.0,62299.0,0.70985]
[1724767501540,0.0009064,62300.0,62299.0,0.72960165]
[1724767501756,0.0009064,62300.0,62299.0,0.72860165]
[1724767502201,0.0029064,62300.0,62299.0,0.72860165]
[1724767502431,0.0009064,62300.0,62299.0,0.72860165]
[1724767502938,0.0009064,62300.0,62299.0,0.73260165]
[1724767503235,0.0009064,62300.0,62299.0,0.73560165]
[1724767503507,0.02514707,62323.0,62309.0,0.4147]
[1724767503742,0.47989634,62325.0,62309.0,0.4147]
[1724767503743,0.47989634,62325.0,62313.0,0.3814]
[1724767504005,0.00906401,62327.0,62322.0,0.001]
[1724767504292,0.00906401,62327.0,62326.0,0.001]
[1724767504540,0.00906401,62327.0,62326.0,0.73096545]
[1724767504786,0.00906401,62327.0,62326.0,0.693]
[1724767505022,0.00906401,62327.0,62326.0,0.85396545]
[1724767505270,0.00906401,62327.0,62326.0,0.693]
[1724767505504,0.00906401,62327.0,62326.0,0.766224]
[1724767505744,0.00906401,62327.0,62326.0,0.78638577]
[1724767506195,0.00906401,62327.0,62326.0,0.79838577]
[1724767506400,0.377,62359.0,62332.0,0.1999]
[1724767506673,0.47989634,62340.0,62333.0,0.45079]
[1724767506898,0.15996545,62358.0,62333.0,0.55079]
[1724767507107,0.15996545,62358.0,62333.0,0.52779]
[1724767507108,0.15996545,62354.0,62333.0,0.52779]
[1724767507337,0.00401041,62353.0,62334.0,0.072769]
[1724767507567,0.15996545,62352.0,62334.0,0.072769]
[1724767507801,0.00401041,62351.0,62334.0,0.072769]
[1724767507994,0.15996545,62350.0,62334.0,0.072769]
[1724767508256,0.00401041,62349.0,62335.0,0.0800459]
[1724767508480,0.15996545,62348.0,62335.0,0.0800459]
[1724767508712,0.0040104,62347.0,62335.0,0.0800459]
[1724767508980,0.0040104,62347.0,62333.0,0.52779]
[1724767508981,0.54476545,62346.0,62333.0,0.52779]
[1724767509189,0.00401075,62345.0,62334.0,0.001]
[1724767509449,0.00401075,62345.0,62333.0,0.52779]
[1724767509450,0.15996545,62344.0,62333.0,0.52779]
[1724767509692,0.00401076,62343.0,62334.0,0.072869]
[1724767509960,0.15996545,62342.0,62334.0,0.072869]
[1724767510201,0.00401055,62341.0,62334.0,0.072869]
[1724767510429,0.00401055,62341.0,62333.0,0.12009]
[1724767510430,0.54826545,62340.0,62333.0,0.1]
[1724767510691,0.00401092,62339.0,62327.0,0.1]
[1724767510904,0.15996545,62338.0,62328.0,0.11498]
[1724767511124,0.00401115,62337.0,62323.0,0.1851]
[1724767511338,0.15996545,62336.0,62324.0,0.05939053]
[1724767511550,0.00401134,62335.0,62324.0,0.05939053]
[1724767511840,0.15996545,62334.0,62324.0,0.05939053]
[1724767512083,0.15996545,62334.0,62333.0,0.001]
[1724767512305,0.15996545,62334.0,62324.0,0.05939053]
[1724767512306,0.15996545,62334.0,62328.0,0.001]
[1724767512555,0.15996545,62334.0,62328.0,0.02454905]
[1724767514086,0.00401105,62333.0,62328.0,0.02454905]
[1724767514305,0.15996545,62332.0,62328.0,0.02454905]
[1724767514742,0.00401105,62331.0,62328.0,0.02454905]
[1724767514980,0.15996545,62330.0,62324.0,0.15939053]
[1724767515195,0.00401133,62329.0,62324.0,0.15939053]
[1724767515416,0.15996545,62328.0,62324.0,0.15939053]
[1724767515695,0.00401133,62327.0,62325.0,0.07329905]
[1724767515917,0.15996545,62326.0,62325.0,0.17329905]
[1724767516377,0.15996545,62326.0,62324.0,0.003]
[1724767516595,0.00401195,62325.0,62324.0,0.003]
[1724767516818,0.1639774,62325.0,62324.0,0.003]
[1724767517262,0.15996545,62325.0,62324.0,0.003]
[1724767517538,0.15996545,62325.0,62324.0,0.04205]
[1724767517775,0.15996545,62325.0,62324.0,0.003]
[1724767518283,0.15996545,62325.0,62319.0,0.1]
[1724767518514,0.16397699,62324.0,62319.0,0.1]
[1724767518765,0.00401154,62323.0,62319.0,0.1]
[1724767519007,0.15996545,62322.0,62319.0,0.1]
[1724767519227,0.00401182,62321.0,62313.0,0.1]
[1724767519486,0.16397747,62320.0,62314.0,0.0706]
[1724767520175,0.00401198,62319.0,62314.0,0.0706]
[1724767520395,0.15996545,62318.0,62314.0,0.0706]
[1724767520619,0.15996545,62319.0,62315.0,0.07766]
[1724767521951,0.16397727,62318.0,62314.0,0.003]
[1724767522194,0.16397727,62318.0,62304.0,0.1942]
[1724767522195,0.16397727,62318.0,62315.0,0.001]
[1724767522658,0.16397727,62318.0,62315.0,0.005]
[1724767522875,0.16397727,62318.0,62315.0,0.004]
[1724767523367,0.16397727,62318.0,62314.0,0.002]
[1724767524662,0.15996545,62315.0,62301.0,0.01952821]
[1724767524879,0.15996545,62315.0,62302.0,0.07025522]
[1724767524880,0.00401281,62314.0,62302.0,0.07025522]
[1724767525101,0.15996545,62313.0,62302.0,0.07025522]
[1724767525313,0.00401278,62312.0,62302.0,0.07025522]
[1724767525529,0.15996545,62311.0,62302.0,0.07025522]
[1724767525760,0.00401278,62310.0,62303.0,0.07727536]
[1724767525972,0.15996545,62309.0,62300.0,0.11947435]
[1724767526198,0.42001295,62308.0,62302.0,0.003]
[1724767526397,0.15996545,62307.0,62302.0,0.004]
[1724767526602,0.00401303,62306.0,62302.0,0.003]
[1724767526819,0.00401303,62306.0,62300.0,0.01947435]
[1724767526820,0.15996545,62305.0,62300.0,0.01947435]
[1724767527031,0.00401304,62304.0,62300.0,0.01947435]
[1724767527242,0.00401304,62304.0,62299.0,0.000824]
[1724767527243,0.15996545,62303.0,62299.0,0.000824]
[1724767527488,0.15996545,62303.0,62300.0,0.02174984]
[1724767527716,0.00401281,62302.0,62300.0,0.02174984]
[1724767527994,0.54946545,62301.0,62299.0,0.000824]
[1724767528218,0.16397916,62300.0,62299.0,0.000824]
[1724767528433,0.55347916,62300.0,62299.0,0.000824]
[1724767528897,0.002,62289.0,62270.0,0.1]
[1724767529120,0.73582449,62278.0,62271.0,0.1148]
[1724767529328,0.16398023,62277.0,62271.0,0.1148]
[1724767529537,0.16398023,62277.0,62270.0,0.1]
[1724767530427,0.00401479,62276.0,62270.0,0.1]
[1724767530673,0.15996545,62275.0,62270.0,0.1]
[1724767531077,0.00401489,62274.0,62270.0,0.1]
[1724767531301,0.15996545,62273.0,62270.0,0.11]
[1724767531532,0.00401494,62272.0,62270.0,0.11]
[1724767531764,0.15996545,62271.0,62270.0,0.1]
[1724767532697,0.15996545,62271.0,62270.0,0.104]
[1724767532698,0.89370505,62271.0,62270.0,0.104]
[1724767532916,0.54738056,62271.0,62270.0,0.104]
[1724767533129,0.54738056,62271.0,62270.0,0.1]
[1724767534462,0.54838056,62271.0,62270.0,0.107]
[1724767534694,0.54436545,62271.0,62270.0,0.109]
[1724767534923,0.16096545,62271.0,62270.0,0.1177]
[1724767535150,0.15996545,62271.0,62270.0,0.1107]
[1724767535401,0.15996545,62271.0,62270.0,0.1]
[1724767535402,0.51128994,62271.0,62270.0,0.1]
[1724767535626,0.16696545,62271.0,62270.0,0.1]
[1724767535848,0.17098061,62271.0,62260.0,0.1]
[1724767536077,0.17098061,62271.0,62260.0,0.07820003]
[1724767536293,0.00401514,62270.0,62260.0,0.17820003]
[1724767536495,0.15996545,62269.0,62260.0,0.17820003]
[1724767536725,0.15996545,62269.0,62261.0,0.08602003]
[1724767536944,0.00401516,62268.0,62261.0,0.18602003]
[1724767537181,0.15996545,62267.0,62261.0,0.18602003]
[1724767537930,0.00401516,62277.0,62261.0,0.08602003]
[1724767537931,0.002,62271.0,62261.0,0.08602003]
[1724767538150,0.15996545,62270.0,62262.0,0.06860203]
[1724767538367,0.00401509,62269.0,62262.0,0.06860203]
[1724767538587,0.15996545,62268.0,62262.0,0.06860203]
[1724767538805,0.00501528,62267.0,62263.0,0.06488766]
[1724767539029,0.15996545,62266.0,62263.0,0.06488766]
[1724767539930,0.004,62270.0,62263.0,0.06488766]
[1724767540143,0.16396545,62270.0,62263.0,0.06488766]
[1724767540397,0.16396545,62270.0,62266.0,0.1945]
[1724767540398,0.004,62270.0,62266.0,0.1945]
[1724767540641,0.004,62270.0,62268.0,0.4156]
[1724767540901,0.34632449,62300.0,62267.0,0.1]
[1724767540902,0.47989634,62288.0,62271.0,0.1892]
[1724767541149,0.63986179,62288.0,62273.0,0.4016]
[1724767541375,0.16397915,62287.0,62274.0,0.1]
[1724767541601,0.00401412,62286.0,62274.0,0.1]
[1724767541837,0.15996545,62285.0,62275.0,0.08043355]
[1724767542071,0.00401434,62284.0,62275.0,0.08043355]
[1724767542313,0.15996545,62283.0,62275.0,0.08043355]
[1724767542584,0.00401445,62282.0,62275.0,0.08043355]
[1724767542804,0.15996545,62281.0,62276.0,0.07712336]
[1724767543022,0.00401443,62280.0,62276.0,0.07712336]
[1724767543251,0.15996545,62279.0,62276.0,0.07712336]
[1724767544174,0.00401438,62289.0,62276.0,0.07712336]
[1724767544400,0.00401438,62289.0,62274.0,0.103]
[1724767544401,0.15996545,62288.0,62277.0,0.45427234]
[1724767544615,0.28067814,62287.0,62278.0,0.1]
[1724767544831,0.001,62279.0,62278.0,0.1]
[1724767545047,0.16096545,62279.0,62278.0,0.16021]
[1724767545284,0.15996545,62279.0,62278.0,0.16021]
[1724767545725,0.15996545,62279.0,62278.0,0.18054948]
[1724767546365,0.15996545,62279.0,62278.0,0.18454948]
[1724767547034,0.15996545,62279.0,62278.0,0.02433948]
[1724767547746,0.16096545,62279.0,62278.0,0.03033948]
[1724767548180,0.16096545,62279.0,62278.0,0.01]
[1724767548629,0.16498015,62279.0,62278.0,0.01]
[1724767549296,0.54258015,62279.0,62278.0,0.01]
[1724767550688,0.54158015,62279.0,62278.0,0.004]
[1724767550915,0.54558015,62279.0,62278.0,0.004]
[1724767551351,0.54558015,62279.0,62261.0,0.100824]
[1724767551567,0.15996545,62277.0,62262.0,0.07961045]
[1724767551811,0.00401502,62276.0,62262.0,0.07961045]
[1724767552016,0.15996545,62275.0,62262.0,0.07961045]
[1724767552233,0.00401502,62274.0,62262.0,0.07961045]
[1724767552453,0.00401502,62274.0,62263.0,0.0462715]
[1724767552454,0.15996545,62273.0,62263.0,0.0462715]
[1724767552680,0.00401537,62272.0,62263.0,0.1]
[1724767552891,0.00401537,62272.0,62261.0,0.100824]
[1724767552892,0.15996545,62271.0,62261.0,0.100824]
[1724767553110,0.00401523,62270.0,62261.0,0.100824]
[1724767553326,0.15996545,62269.0,62262.0,0.08061045]
[1724767553547,0.15996545,62269.0,62262.0,0.07961045]
[1724767553765,0.00401498,62268.0,62262.0,0.07961045]
[1724767554200,0.15996545,62269.0,62262.0,0.07961045]
[1724767554420,0.15996545,62269.0,62263.0,0.4337715]
[1724767554671,0.15996545,62269.0,62264.0,0.1]
[1724767555558,0.16096545,62269.0,62264.0,0.1]
[1724767556003,0.15996545,62269.0,62264.0,0.1]
[1724767556217,0.16096545,62269.0,62264.0,0.1]
[1724767556433,0.16096545,62269.0,62265.0,0.08219119]
[1724767557315,0.00401497,62268.0,62264.0,0.102]
[1724767557526,0.15996545,62267.0,62264.0,0.102]
[1724767557740,0.00401519,62266.0,62263.0,0.0462715]
[1724767557948,0.15996545,62265.0,62263.0,0.0462715]
[1724767558171,0.15996545,62265.0,62264.0,0.0804576]
[1724767558386,0.15996545,62265.0,62264.0,0.1]
[1724767559324,0.02516152,62276.0,62265.0,0.3752]
[1724767559561,0.15996545,62275.0,62265.0,0.3752]
[1724767559823,0.15944859,62275.0,62266.0,0.13961049]
[1724767560277,0.00401503,62274.0,62266.0,0.13961049]
[1724767560495,0.15996545,62273.0,62267.0,0.1883]
[1724767560722,0.00401496,62272.0,62267.0,0.1883]
[1724767560941,0.15996545,62271.0,62268.0,0.07071105]
[1724767561176,0.00401498,62270.0,62266.0,0.13961049]
[1724767561422,0.15996545,62269.0,62266.0,0.03961049]
[1724767561662,0.15996545,62269.0,62267.0,0.1]
[1724767561910,0.15996545,62269.0,62268.0,0.01586916]
[1724767562132,0.15996545,62269.0,62266.0,0.03961049]
[1724767562382,0.00401503,62268.0,62266.0,0.03961049]
[1724767562609,0.16398048,62268.0,62266.0,0.03961049]
[1724767562824,0.15996545,62268.0,62266.0,0.03961049]
[1724767563719,0.001,62269.0,62267.0,0.4068]
[1724767563931,0.001,62269.0,62268.0,0.14464105]
[1724767564149,0.001,62269.0,62268.0,0.35762154]
[1724767564588,0.16096545,62269.0,62268.0,0.35762154]
[1724767564815,0.16096545,62269.0,62268.0,0.14464105]
[1724767565035,0.16096545,62269.0,62266.0,0.003]
[1724767565036,0.15996545,62269.0,62266.0,0.003]
[1724767565259,0.44064463,62268.0,62266.0,0.001]
[1724767565723,0.44064463,62268.0,62262.0,0.01508049]
[1724767565943,0.44064463,62268.0,62263.0,0.01131603]
[1724767566640,0.44064463,62268.0,62266.0,0.003]
[1724767567112,0.3751,62267.0,62266.0,0.003]
[1724767567336,0.53506545,62267.0,62266.0,0.003]
[1724767568276,0.53506545,62267.0,62263.0,0.000823]
[1724767568520,0.00401554,62266.0,62263.0,0.000823]
[1724767568745,0.15996545,62265.0,62263.0,0.002823]
[1724767568961,0.00401554,62264.0,62263.0,0.002823]
[1724767569179,0.16398099,62264.0,62263.0,0.002823]
[1724767569692,0.16398099,62264.0,62263.0,0.000823]
[1724767571538,0.16398099,62264.0,62263.0,0.001823]
[1724767571757,0.16598099,62264.0,62263.0,0.001823]
[1724767572208,0.16598099,62264.0,62261.0,0.000824]
[1724767572209,0.160611,62262.0,62261.0,0.000824]
[1724767572431,0.44064534,62262.0,62261.0,0.000824]
[1724767573175,0.15996545,62262.0,62261.0,0.000824]
[1724767573694,0.43662928,62262.0,62261.0,0.04794719]
[1724767574214,0.43662928,62262.0,62261.0,0.000824]
[1724767574483,0.43962928,62262.0,62261.0,0.000824]
[1724767575027,0.82212928,62262.0,62261.0,0.000824]
[1724767575253,1.18174028,62262.0,62261.0,0.000824]
[1724767575507,1.50296328,62262.0,62261.0,0.000824]
[1724767575742,1.50096328,62262.0,62261.0,0.000824]
[1724767575965,1.17974028,62262.0,62261.0,0.000824]
[1724767576197,1.50396328,62262.0,62261.0,0.000824]
[1724767576415,1.02212928,62262.0,62261.0,0.000824]
[1724767576661,1.50396328,62262.0,62261.0,0.000824]
[1724767576885,1.82718628,62262.0,62261.0,0.000824]
[1724767577352,1.82418628,62262.0,62261.0,0.000824]
[1724767577781,0.80507,62261.0,62260.0,0.00083333]
[1724767578008,0.160637,62252.0,62251.0,0.0088456]
[1724767578220,0.99323128,62252.0,62251.0,0.0088456]
[1724767578440,0.83812928,62252.0,62251.0,0.0088456]
[1724767579375,0.84312928,62252.0,62251.0,0.0088456]
[1724767580296,0.84312928,62252.0,62237.0,0.60483]
[1724767580297,0.162639,62251.0,62237.0,0.00823]
[1724767580551,0.60328507,62251.0,62237.0,0.00823]
[1724767580776,0.16398224,62251.0,62237.0,0.00823]
[1724767581000,0.16398224,62251.0,62239.0,0.382]
[1724767581001,0.44064607,62251.0,62239.0,0.382]
[1724767581508,0.45164607,62251.0,62239.0,0.382]
[1724767581777,0.46064607,62251.0,62250.0,1.01418]
[1724767582003,0.44964607,62251.0,62250.0,1.01418]
[1724767582227,0.44562928,62251.0,62250.0,1.01318]
[1724767582679,0.43662928,62251.0,62250.0,1.01318]
[1724767582900,0.44362928,62251.0,62250.0,1.01318]
[1724767583540,0.44962928,62251.0,62250.0,1.01318]
[1724767584031,0.17296545,62251.0,62250.0,1.41328]
[1724767584272,0.16696545,62251.0,62250.0,1.41328]
[1724767584513,0.16096545,62251.0,62250.0,1.01318]
[1724767584735,0.16696545,62251.0,62250.0,1.01318]
[1724767584959,0.16696545,62251.0,62250.0,1.07906585]
[1724767585403,0.16696545,62251.0,62250.0,1.01318]
[1724767587168,0.007,62251.0,62250.0,1.58478]
[1724767587393,0.007,62251.0,62250.0,1.70778]
[1724767587664,0.0009064,62279.0,62254.0,0.5716]
[1724767587897,0.47989634,62268.0,62256.0,0.1833]
[1724767588116,0.15996545,62274.0,62258.0,0.1833]
[1724767588343,0.0009064,62279.0,62268.0,0.1833]
[1724767588562,0.0009064,62279.0,62269.0,0.123]
[1724767588796,0.0009064,62279.0,62270.0,0.5674]
[1724767589225,0.0009064,62279.0,62271.0,0.16904]
[1724767589227,0.0009064,62279.0,62270.0,0.5674]
[1724767589228,0.15996545,62274.0,62270.0,0.5674]
[1724767589701,0.27666383,62272.0,62270.0,0.5674]
[1724767589945,0.1639803,62271.0,62270.0,0.5674]
[1724767590181,0.1639803,62271.0,62270.0,0.62414]
[1724767590648,0.1639803,62271.0,62270.0,0.05674]
[1724767590864,0.15996545,62271.0,62270.0,0.002]
[1724767591099,0.16398088,62271.0,62270.0,0.002]
[1724767591334,0.16398088,62271.0,62260.0,0.1868]
[1724767591588,0.16398088,62271.0,62260.0,0.27517382]
[1724767591810,0.16398088,62271.0,62270.0,0.003]
[1724767592260,0.72786888,62271.0,62270.0,0.004]
[1724767592501,1.03704488,62271.0,62270.0,0.003]
[1724767592988,0.160598,62268.0,62260.0,0.001]
[1724767593199,0.43662928,62261.0,62250.0,1.01318]
[1724767593407,0.15996545,62257.0,62250.0,1.165048]
[1724767593623,0.00401622,62256.0,62250.0,1.01318]
[1724767593833,0.15996545,62255.0,62250.0,1.01318]
[1724767594041,0.00401622,62254.0,62250.0,1.01318]
[1724767594274,0.15996545,62253.0,62250.0,1.01318]
[1724767594547,0.43662928,62251.0,62250.0,1.01318]
[1724767595187,0.43662928,62251.0,62250.0,1.01418]
[1724767595188,0.15996545,62251.0,62250.0,1.01418]
[1724767595641,0.15996545,62251.0,62250.0,1.01318]
[1724767596496,0.15996545,62251.0,62250.0,1.60198]
[1724767596696,0.16696545,62251.0,62250.0,1.60298]
[1724767597384,0.16696545,62251.0,62250.0,1.60498]
[1724767598689,0.15996545,62251.0,62250.0,1.21008]
[1724767599387,0.15996545,62251.0,62250.0,1.01518]
[1724767599616,0.15996545,62251.0,62237.0,0.00823]
[1724767599617,0.55046545,62251.0,62236.0,0.00823]
[1724767599877,0.55046545,62251.0,61403.0,4.103e-05]
[1724767600121,0.484307,62201.0,62200.0,0.08676616]
[1724767600393,1.127383,62201.0,62200.0,0.08676616]
[1724767600695,1.285645,62201.0,62200.0,0.08676616]
[1724767600891,1.44417083,62201.0,62200.0,0.07976616]
[1724767601112,1.00943682,62201.0,62200.0,0.07976616]
[1724767601359,1.00943682,62201.0,62198.0,0.00822]
[1724767601360,0.002,62193.0,62192.0,0.00021952]
[1724767601600,0.43945283,62193.0,62192.0,0.00021952]
[1724767601813,0.69941828,62193.0,62192.0,0.00021952]
[1724767602038,0.72241828,62193.0,62192.0,0.00021952]
[1724767602270,0.79285573,62193.0,62192.0,0.00021952]
[1724767602518,1.01865445,62193.0,62192.0,0.00021952]
[1724767602729,1.20496673,62193.0,62192.0,0.00021952]
[1724767602946,1.23016717,62193.0,62192.0,0.00021952]
[1724767603171,1.39095617,62193.0,62192.0,0.00021952]
[1724767603395,1.39095617,62193.0,62192.0,0.00121952]
[1724767603396,1.41895617,62193.0,62192.0,0.00121952]
[1724767603637,0.78706589,62193.0,62192.0,0.00121952]
[1724767603854,0.18516589,62193.0,62192.0,0.00021952]
[1724767604091,0.19916589,62193.0,62192.0,0.00121952]
[1724767604304,0.18796545,62193.0,62192.0,0.00121952]
[1724767604860,0.014,62193.0,62192.0,0.00121952]
[1724767605053,0.028,62193.0,62192.0,0.00121952]
[1724767605253,0.028,62193.0,62192.0,0.39331952]
[1724767605513,0.028,62193.0,62192.0,0.53351447]
[1724767605722,0.028,62193.0,62192.0,0.54176184]
[1724767605941,0.014,62193.0,62192.0,0.54076184]
[1724767606366,0.028,62193.0,62192.0,0.54176184]
[1724767606586,0.48391599,62211.0,62192.0,0.54076184]
[1724767606795,0.63986179,62210.0,62193.0,0.23741618]
[1724767607014,0.00401905,62209.0,62194.0,0.1]
[1724767607223,0.15996545,62207.0,62193.0,0.1832]
[1724767607436,0.00401984,62206.0,62195.0,0.00806942]
[1724767607650,0.15996545,62205.0,62196.0,0.05839889]
[1724767607873,0.1909,62191.0,62160.0,0.47989634]
[1724767608082,0.00402115,62190.0,62181.0,0.1928]
[1724767608342,0.34710128,62199.0,62182.0,0.06726963]
[1724767608559,0.34710128,62199.0,62181.0,0.1928]
[1724767608560,0.15996545,62195.0,62181.0,0.1928]
[1724767608777,0.00402071,62194.0,62181.0,0.1928]
[1724767609006,0.15996545,62192.0,62181.0,0.1928]
[1724767609684,0.00402012,62206.0,62181.0,0.1928]
[1724767609685,0.00402012,62206.0,62184.0,0.001]
[1724767609901,0.00402012,62206.0,62185.0,0.4015]
[1724767609902,0.15996545,62205.0,62185.0,0.4015]
[1724767610117,0.00401953,62204.0,62186.0,0.1]
[1724767610321,0.007,62192.0,62187.0,0.054378]
[1724767610530,0.0040196,62202.0,62187.0,0.054378]
[1724767610737,0.001,62192.0,62187.0,0.054378]
[1724767611361,0.00401962,62200.0,62187.0,0.054378]
[1724767611572,0.001,62192.0,62188.0,0.0555878]
[1724767612465,0.001,62192.0,62190.0,0.1907]
[1724767612672,0.001,62192.0,62191.0,0.5133]
[1724767613124,0.00401907,62220.0,62191.0,0.69726545]
[1724767613125,0.02518784,62219.0,62191.0,0.69726545]
[1724767613344,0.47989634,62216.0,62198.0,0.1839]
[1724767613562,0.00401849,62215.0,62199.0,0.5103]
[1724767613788,0.00401849,62215.0,62200.0,0.08551655]
[1724767613789,0.16398394,62215.0,62200.0,0.08551655]
[1724767614008,0.009,62202.0,62201.0,0.15996545]
[1724767614216,0.00401881,62223.0,62202.0,0.3853]
[1724767614421,0.012,62219.0,62203.0,0.1]
[1724767614681,0.012,62219.0,62204.0,0.7028282]
[1724767614912,0.0040178,62237.0,62209.0,0.3979]
[1724767615124,0.0040178,62237.0,62213.0,0.3979]
[1724767615125,0.008,62215.0,62213.0,0.3979]
[1724767615341,0.008,62215.0,62214.0,0.6725]
[1724767615557,0.15996545,62236.0,62214.0,0.6725]
[1724767615558,0.00401746,62235.0,62214.0,0.47706545]
[1724767615765,0.00401746,62235.0,62215.0,0.4348472]
[1724767615766,0.004,62219.0,62215.0,0.4348472]
[1724767615999,0.004,62219.0,62216.0,0.1]
[1724767616671,0.006,62219.0,62216.0,0.1]
[1724767617102,0.004,62219.0,62216.0,0.1]
[1724767617314,0.00401798,62230.0,62216.0,0.1]
[1724767617545,0.15996545,62228.0,62216.0,0.004]
[1724767617764,0.00401798,62230.0,62216.0,0.004]
[1724767617765,0.15996545,62221.0,62216.0,0.004]
[1724767617973,0.34710128,62217.0,62216.0,0.004]
[1724767618181,0.50706673,62217.0,62216.0,0.004]
[1724767619500,0.15996545,62217.0,62216.0,0.004]
[1724767619703,0.15996545,62217.0,62200.0,0.5925]
[1724767619941,0.15996545,62216.0,62201.0,0.05925]
[1724767620156,0.00401858,62229.0,62202.0,0.4072]
[1724767620390,0.16087185,62219.0,62203.0,0.05925]
[1724767620636,0.00401843,62218.0,62204.0,0.4072]
[1724767620843,0.17096545,62217.0,62205.0,0.1]
[1724767621056,0.00401863,62216.0,62205.0,0.1]
[1724767621300,0.15996545,62215.0,62206.0,0.056645]
[1724767621710,0.01,62217.0,62206.0,0.056645]
[1724767622173,0.0009064,62219.0,62207.0,0.5857]
[1724767622372,0.008,62216.0,62208.0,0.1]
[1724767622790,0.0009064,62219.0,62208.0,0.1]
[1724767622994,0.15996545,62215.0,62208.0,0.1]
[1724767623197,0.00401862,62214.0,62208.0,0.1]
[1724767623407,0.15996545,62213.0,62208.0,0.1]
[1724767623612,0.00401892,62212.0,62208.0,0.1]
[1724767623823,0.15996545,62211.0,62208.0,0.1]
[1724767624039,0.0040189,62210.0,62208.0,0.1]
[1724767624262,0.007,62216.0,62209.0,0.06857]
[1724767624477,0.007,62216.0,62210.0,0.4059]
[1724767624682,0.007,62214.0,62211.0,0.177287]
[1724767624883,0.007,62214.0,62212.0,0.4059]
[1724767625119,0.0009064,62219.0,62188.0,0.1909]
[1724767625120,0.99298104,62213.0,62188.0,0.1909]
[1724767625324,0.99298104,62213.0,62189.0,0.47989634]
[1724767625325,0.15996545,62207.0,62189.0,0.47989634]